fUST/lending_fUST_20240611
["ID","MTS","AMOUNT","RATE_DAILY","PERIOD"]
[329044035,1718071844821,-4176.12,0.00019452,2]
[329044037,1718071844831,-571.42,0.00019452,2]
[329044038,1718071844841,-500.0,0.00019452,2]
[329044040,1718071844851,-516.32258497,0.00019452,2]
[329044042,1718071844861,-605.23,0.00019452,2]
[329044044,1718071844871,-500.0,0.00019452,2]
[329044046,1718071844882,-500.0,0.00019452,2]
[329044047,1718071844894,-500.0,0.00019452,2]
[329044049,1718071844908,-500.0,0.00019452,2]
[329044051,1718071844918,-500.0,0.00019452,2]
[329044053,1718071844929,-503.40385846,0.00019452,2]
[329044054,1718071844939,-938.95,0.00019452,2]
[329044056,1718071844950,-2859.71,0.00019452,2]
[329044058,1718071844961,-1812.15,0.00019452,2]
[329044060,1718071844972,-1103.57,0.00019452,2]
[329044062,1718071844982,-774.3,0.00019452,2]
[329044063,1718071844992,-1753.98,0.00019452,2]
[329044065,1718071845002,-500.0,0.00019452,2]
[329044067,1718071845014,-510.96304051,0.00019452,2]
[329044069,1718071845024,-2422.16,0.00019452,2]
[329044070,1718071845034,-195.01361516,0.00019452,2]
[329044072,1718071845045,-151.649272,0.00019452,2]
[329044074,1718071845055,-500.0,0.00019452,2]
[329044075,1718071845065,-551.2,0.00019452,2]
[329044077,1718071845075,-1662.75,0.00019452,2]
[329044079,1718071845085,-500.0,0.00019452,2]
[329044081,1718071845095,-2351.03,0.00019452,2]
[329044082,1718071845105,-511.48,0.00019452,2]
[329044084,1718071845115,-151.0,0.00019452,2]
[329044086,1718071845125,-260.436167,0.00019452,2]
[329044088,1718071845136,-500.0,0.00019452,2]
[329044090,1718071845155,-1467.8,0.00019452,2]
[329044092,1718071845166,-508.31652014,0.00019452,2]
[329044094,1718071845175,-500.0,0.00019452,2]
[329044096,1718071845185,-390.434477,0.00019452,2]
[329044097,1718071845195,-351.14666631,0.00019489,2]
[329044099,1718071845206,-1000.0,0.000195,2]
[329044101,1718071845216,-1000.0,0.000195,3]
[329044103,1718071845226,-1000.0,0.000195,4]
[329044105,1718071845237,-623.31189747,0.00019564,2]
[329044107,1718071845246,-218.7,0.00019575,3]
[329044109,1718071845256,-151.0,0.00019586,2]
[329044110,1718071845267,-151.0,0.00019586,2]
[329044112,1718071845276,-152.532367,0.00019586,2]
[329044114,1718071845286,-151.0,0.00019586,2]
[329044116,1718071845296,-151.0,0.00019586,2]
[329044117,1718071845306,-500.0,0.00019586,2]
[329044119,1718071845316,-4239.70515949,0.00019601,2]
[329044121,1718071845326,-1015.76018409,0.00019626,2]
[329044123,1718071845336,-351.14666631,0.00019695,2]
[329044124,1718071845347,-167.16185994,0.00019725,2]
[329044126,1718071845357,-658.76,0.00019725,2]
[329044128,1718071845368,-11124.73674278,0.00019726,15]
[329044130,1718071845378,-300.88693981,0.00019726,2]
[329044132,1718071845388,-500.0,0.00019726,2]
[329044134,1718071845402,-500.0,0.00019726,2]
[329044136,1718071845412,-500.0,0.00019726,2]
[329044138,1718071845422,-500.0,0.00019726,2]
[329044140,1718071845433,-535.9,0.00019726,2]
[329044141,1718071845443,-512.63890382,0.00019726,2]
[329044143,1718071845453,-512.34335597,0.00019726,2]
[329044145,1718071845463,-500.0,0.00019726,2]
[329044147,1718071845474,-500.0,0.00019726,2]
[329044149,1718071845485,-532.19,0.00019726,2]
[329044151,1718071845495,-500.0,0.00019726,2]
[329044152,1718071845505,-151.0,0.00019726,2]
[329044154,1718071845516,-151.0,0.00019726,2]
[329044156,1718071845526,-255.779424,0.00019726,2]
[329044158,1718071845537,-255.779424,0.00019726,2]
[329044160,1718071845547,-151.988398,0.00019726,2]
[329044162,1718071845558,-151.0,0.00019726,2]
[329044163,1718071845568,-151.0,0.00019726,2]
[329044165,1718071845579,-153.181627,0.00019726,2]
[329044167,1718071845590,-231.211346,0.00019726,2]
[329044169,1718071845600,-347.406118,0.00019726,2]
[329044171,1718071845609,-505.14,0.00019726,2]
[329044173,1718071845620,-639.82092476,0.00019726,2]
[329044175,1718071845631,-347.406118,0.00019726,2]
[329044177,1718071845640,-500.0,0.00019726,2]
[329044179,1718071845651,-500.0,0.00019726,2]
[329044181,1718071845660,-500.0,0.00019726,2]
[329044182,1718071845670,-4176.12,0.00019726,2]
[329044184,1718071845680,-571.42,0.00019726,2]
[329044186,1718071845689,-233.68300293,0.00019726,2]
[329044188,1718071845700,-605.23,0.00019726,2]
[329044190,1718071845710,-515.94918182,0.00019726,2]
[329044191,1718071845720,-500.0,0.00019726,2]
[329044193,1718071845729,-500.0,0.00019726,2]
[329044195,1718071845739,-500.0,0.00019726,2]
[329044197,1718071845750,-938.95,0.00019726,2]
[329044199,1718071845760,-2859.71,0.00019726,2]
[329044201,1718071845770,-1812.15,0.00019726,2]
[329044202,1718071845781,-1103.57,0.00019726,2]
[329044204,1718071845791,-774.3,0.00019726,2]
[329044206,1718071845802,-1753.98,0.00019726,2]
[329044208,1718071845811,-500.0,0.00019726,2]
[329044210,1718071845821,-2422.16,0.00019726,2]
[329044212,1718071845831,-1662.75,0.00019726,2]
[329044214,1718071845841,-500.0,0.00019726,2]
[329044215,1718071845851,-500.13289745,0.00019726,2]
[329044218,1718071845871,-1850.89710255,0.00019726,2]
[329044220,1718071845882,-511.48,0.00019726,2]
[329044222,1718071845897,-152.464424,0.00019726,2]
[329044224,1718071845910,-500.0,0.00019726,2]
[329044226,1718071845920,-1467.8,0.00019726,2]
[329044228,1718071845935,-500.0,0.00019726,2]
[329044230,1718071845945,-12878.80962857,0.00019899,2]
[329044232,1718071845955,-151.0,0.00019899,2]
[329044233,1718071845965,-151.0,0.00019899,2]
[329044235,1718071845975,-151.0,0.00019899,2]
[329044237,1718071845985,-188.077695,0.00019899,2]
[329044248,1718071846093,-151.0,0.00019899,2]
[329044250,1718071846103,-151.0,0.00019899,2]
[329044252,1718071846114,-658.76,0.00019899,2]
[329044254,1718071846124,-151.0,0.00019899,2]
[329044255,1718071846134,-151.0,0.00019899,2]
[329044257,1718071846144,-500.0,0.00019899,2]
[329044259,1718071846156,-151.0,0.000199,2]
[329044261,1718071846167,-151.0,0.000199,2]
[329044263,1718071846177,-151.0,0.000199,2]
[329044265,1718071846187,-347.406118,0.000199,2]
[329044267,1718071846197,-347.406118,0.000199,2]
[329044268,1718071846208,-351.14666631,0.000199,2]
[329044270,1718071846217,-658.76,0.00019928,2]
[329044272,1718071846227,-500.0,0.00019928,2]
[329044274,1718071846237,-36509.23038576,0.00019929,2]
[329044276,1718071846247,-151.0,0.00019929,2]
[329044278,1718071846257,-270.516373,0.00019929,2]
[329044280,1718071846268,-151.0,0.00019929,2]
[329044282,1718071846278,-151.0,0.00019929,2]
[329044283,1718071846289,-157.684681,0.00019929,2]
[329044285,1718071846298,-255.779424,0.00019929,2]
[329044287,1718071846308,-255.779424,0.00019929,2]
[329044295,1718071846318,-151.0,0.00019929,2]
[329044301,1718071846329,-151.0,0.00019929,2]
[329044308,1718071846340,-151.0,0.00019929,2]
[329044311,1718071846351,-151.0,0.00019929,2]
[329044315,1718071846361,-218.7,0.00019959,3]
[329044318,1718071846372,-151.0,0.00019999,2]
[329044321,1718071846383,-151.0,0.00019999,2]
[329044324,1718071846393,-151.0,0.00019999,2]
[329044327,1718071846404,-347.406118,0.00019999,2]
[329044330,1718071846414,-347.406118,0.00019999,2]
[329044334,1718071846424,-658.76,0.00019999,2]
[329044338,1718071846435,-658.76,0.00019999,2]
[329044341,1718071846445,-658.76,0.00019999,2]
[329044343,1718071846455,-658.76,0.00019999,2]
[329044347,1718071846465,-658.76,0.00019999,2]
[329044351,1718071846475,-658.76,0.00019999,2]
[329044355,1718071846485,-658.76,0.00019999,2]
[329044359,1718071846495,-658.76,0.00019999,2]
[329044363,1718071846505,-500.0,0.00019999,2]
[329044367,1718071846515,-500.0,0.00019999,2]
[329044370,1718071846525,-500.0,0.00019999,2]
[329044372,1718071846534,-500.0,0.00019999,2]
[329044375,1718071846544,-500.0,0.00019999,2]
[329044378,1718071846554,-500.0,0.00019999,2]
[329044381,1718071846564,-500.0,0.00019999,2]
[329044384,1718071846574,-500.0,0.00019999,2]
[329044387,1718071846584,-155.07815546,0.0002,2]
[329044390,1718071846594,-10605.51282002,0.0002,2]
[329044393,1718071846608,-2865.16389731,0.0002,2]
[329044395,1718071846621,-25574.9858638,0.0002,2]
[329044397,1718071846634,-254621.64689306,0.0002,2]
[329044399,1718071846643,-500.0,0.0002,2]
[329044401,1718071846654,-151.0,0.0002,2]
[329044403,1718071846663,-500.0,0.0002,2]
[329044405,1718071846672,-151.0,0.0002,2]
[329044406,1718071846682,-500.0,0.0002,2]
[329044408,1718071846691,-522.86784677,0.0002,2]
[329044410,1718071846701,-154.865013,0.0002,2]
[329044412,1718071846711,-500.0,0.0002,2]
[329044414,1718071846720,-500.0,0.0002,2]
[329044416,1718071846730,-532.19,0.0002,2]
[329044418,1718071846740,-515.4358927,0.0002,2]
[329044420,1718071846750,-151.0,0.0002,2]
[329044421,1718071846759,-254.0,0.0002,2]
[329044423,1718071846769,-255.779424,0.0002,2]
[329044425,1718071846779,-255.779424,0.0002,2]
[329044427,1718071846788,-151.0,0.0002,2]
[329044429,1718071846797,-151.0,0.0002,2]
[329044431,1718071846807,-505.14,0.0002,2]
[329044432,1718071846816,-347.406118,0.0002,2]
[329044434,1718071846826,-500.0,0.0002,2]
[329044436,1718071846836,-347.406118,0.0002,2]
[329044438,1718071846846,-500.0,0.0002,2]
[329044440,1718071846856,-500.0,0.0002,2]
[329044442,1718071846866,-4176.12,0.0002,2]
[329044444,1718071846876,-571.42,0.0002,2]
[329044446,1718071846888,-151.0,0.0002,2]
[329044448,1718071846898,-605.23,0.0002,2]
[329044449,1718071846909,-500.0,0.0002,2]
[329044451,1718071846920,-500.0,0.0002,2]
[329044453,1718071846931,-151.0,0.0002,2]
[329044455,1718071846941,-938.95,0.0002,2]
[329044457,1718071846951,-2859.71,0.0002,2]
[329044459,1718071846962,-151.0,0.0002,2]
[329044461,1718071846973,-1812.15,0.0002,2]
[329044463,1718071846983,-151.0,0.0002,2]
[329044465,1718071846993,-1103.57,0.0002,2]
[329044467,1718071847003,-774.3,0.0002,2]
[329044468,1718071847012,-1753.98,0.0002,2]
[329044470,1718071847022,-500.0,0.0002,2]
[329044472,1718071847032,-2422.16,0.0002,2]
[329044474,1718071847042,-1662.75,0.0002,2]
[329044476,1718071847052,-500.0,0.0002,2]
[329044478,1718071847062,-2351.03,0.0002,2]
[329044480,1718071847071,-511.48,0.0002,2]
[329044482,1718071847081,-500.0,0.0002,2]
[329044483,1718071847091,-1467.8,0.0002,2]
[329044485,1718071847101,-500.0,0.0002,2]
[329044487,1718071847110,-500.0,0.00020099,2]
[329044489,1718071847120,-2040.0,0.000201,3]
[329044491,1718071847130,-658.76,0.00020199,2]
[329044493,1718071847140,-658.76,0.00020199,2]
[329044495,1718071847151,-500.0,0.00020199,2]
[329044497,1718071847161,-5884.6248946,0.000202,2]
[329044498,1718071847171,-5884.62489455,0.000202,2]
[329044500,1718071847181,-5884.62489455,0.000202,2]
[329044502,1718071847190,-5884.62489455,0.000202,2]
[329044504,1718071847200,-5884.62489455,0.000202,2]
[329044506,1718071847210,-5884.62489455,0.000202,2]
[329044508,1718071847221,-5884.62489455,0.000202,2]
[329044510,1718071847231,-5884.62489455,0.000202,2]
[329044512,1718071847241,-260.124926,0.000202,2]
[329044513,1718071847251,-151.0,0.000202,2]
[329044519,1718071847261,-151.0,0.000202,2]
[329044524,1718071847271,-255.779424,0.000202,2]
[329044530,1718071847281,-255.779424,0.000202,2]
[329044536,1718071847292,-151.0,0.000202,2]
[329044542,1718071847302,-151.0,0.000202,2]
[329044550,1718071847312,-347.406118,0.000202,2]
[329044559,1718071847323,-347.406118,0.000202,2]
[329044565,1718071847334,-151.0,0.000202,2]
[329044569,1718071847343,-151.0,0.000202,2]
[329044576,1718071847355,-151.0,0.000202,2]
[329044582,1718071847364,-151.0,0.000202,2]
[329044587,1718071847374,-500.0,0.00020272,2]
[329044593,1718071847383,-500.0,0.00020273,2]
[329044599,1718071847393,-500.0,0.00020273,2]
[329044605,1718071847405,-151.0,0.00020273,2]
[329044610,1718071847414,-500.0,0.00020273,2]
[329044613,1718071847423,-500.0,0.00020273,2]
[329044617,1718071847433,-500.0,0.00020273,2]
[329044621,1718071847443,-532.19,0.00020273,2]
[329044625,1718071847453,-151.0,0.00020273,2]
[329044630,1718071847463,-255.779424,0.00020273,2]
[329044635,1718071847472,-255.779424,0.00020273,2]
[329044640,1718071847482,-151.0,0.00020273,2]
[329044643,1718071847492,-151.0,0.00020273,2]
[329044648,1718071847502,-505.14,0.00020273,2]
[329044652,1718071847512,-347.406118,0.00020273,2]
[329044657,1718071847522,-500.0,0.00020273,2]
[329044662,1718071847532,-500.0,0.00020273,2]
[329044667,1718071847542,-347.406118,0.00020273,2]
[329044671,1718071847552,-500.0,0.00020273,2]
[329044676,1718071847561,-4176.12,0.00020273,2]
[329044679,1718071847571,-571.42,0.00020273,2]
[329044683,1718071847581,-151.0,0.00020273,2]
[329044688,1718071847591,-605.23,0.00020273,2]
[329044691,1718071847600,-500.0,0.00020273,2]
[329044695,1718071847609,-151.0,0.00020273,2]
[329044699,1718071847619,-938.95,0.00020273,2]
[329044702,1718071847628,-2859.71,0.00020273,2]
[329044703,1718071847637,-151.0,0.00020273,2]
[329044707,1718071847646,-1812.15,0.00020273,2]
[329044709,1718071847658,-151.0,0.00020273,2]
[329044713,1718071847667,-1103.57,0.00020273,2]
[329044715,1718071847677,-774.3,0.00020273,2]
[329044719,1718071847686,-1753.98,0.00020273,2]
[329044723,1718071847696,-500.0,0.00020273,2]
[329044726,1718071847706,-2422.16,0.00020273,2]
[329044729,1718071847717,-1662.75,0.00020273,2]
[329044731,1718071847726,-500.0,0.00020273,2]
[329044735,1718071847737,-2351.03,0.00020273,2]
[329044738,1718071847747,-511.48,0.00020273,2]
[329044742,1718071847757,-500.0,0.00020273,2]
[329044745,1718071847768,-1467.8,0.00020273,2]
[329044748,1718071847779,-5884.62489455,0.00020293,2]
[329044752,1718071847789,-658.76,0.00020326,2]
[329044755,1718071847798,-218.7,0.00020343,3]
[329044759,1718071847808,-240.0686,0.00020442,2]
[329044762,1718071847818,-5884.62489455,0.00020445,2]
[329044766,1718071847828,-185.491109,0.00020447,2]
[329044769,1718071847839,-166.785336,0.00020447,2]
[329044772,1718071847849,-151.0,0.00020447,2]
[329044775,1718071847858,-283.224141,0.00020447,2]
[329044777,1718071847868,-151.0,0.00020465,2]
[329044780,1718071847879,-255.779424,0.00020465,2]
[329044783,1718071847894,-255.779424,0.00020465,2]
[329044786,1718071847905,-151.0,0.00020465,2]
[329044789,1718071847916,-151.0,0.00020465,2]
[329044792,1718071847927,-347.406118,0.00020465,2]
[329044795,1718071847937,-347.406118,0.00020465,2]
[329044797,1718071847946,-150.187,0.00020465,2]
[329044800,1718071847955,-150.07,0.00020465,2]
[329044803,1718071847966,-150.637,0.00020465,2]
[329044806,1718071847978,-151.0,0.00020474,2]
[329044808,1718071847987,-658.76,0.00020474,2]
[329044810,1718071847997,-500.0,0.00020474,2]
[329044811,1718071848006,-30000.0,0.00020475,2]
[329044813,1718071848016,-620.16559487,0.00020543,2]
[329044815,1718071848025,-500.0,0.00020546,2]
[329044817,1718071848035,-462.51768119,0.00020547,2]
[329044819,1718071848044,-500.0,0.00020547,2]
[329044821,1718071848054,-151.0,0.00020547,2]
[329044823,1718071848064,-500.0,0.00020547,2]
[329044825,1718071848074,-500.0,0.00020547,2]
[329044827,1718071848084,-500.0,0.00020547,2]
[329044828,1718071848093,-532.19,0.00020547,2]
[329044830,1718071848104,-151.0,0.00020547,2]
[329044832,1718071848113,-255.779424,0.00020547,2]
[329044834,1718071848122,-255.779424,0.00020547,2]
[329044836,1718071848131,-151.0,0.00020547,2]
[329044838,1718071848140,-151.0,0.00020547,2]
[329044839,1718071848152,-505.14,0.00020547,2]
[329044841,1718071848162,-347.406118,0.00020547,2]
[329044843,1718071848173,-500.0,0.00020547,2]
[329044845,1718071848183,-164.8285362,0.00020547,2]
[329044847,1718071848193,-347.406118,0.00020547,2]
[329044849,1718071848202,-500.0,0.00020547,2]
[329044850,1718071848212,-4176.12,0.00020547,2]
[329044852,1718071848222,-571.42,0.00020547,2]
[329044854,1718071848231,-605.23,0.00020547,2]
[329044856,1718071848241,-500.0,0.00020547,2]
[329044858,1718071848250,-938.95,0.00020547,2]
[329044859,1718071848260,-2859.71,0.00020547,2]
[329044860,1718071848269,-151.0,0.00020547,2]
[329044861,1718071848279,-1812.15,0.00020547,2]
[329044863,1718071848288,-1103.57,0.00020547,2]
[329044865,1718071848298,-774.3,0.00020547,2]
[329044867,1718071848307,-1753.98,0.00020547,2]
[329044869,1718071848317,-500.0,0.00020547,2]
[329044872,1718071848326,-2422.16,0.00020547,2]
[329044873,1718071848336,-1662.75,0.00020547,2]
[329044875,1718071848346,-500.0,0.00020547,2]
[329044878,1718071848356,-2351.03,0.00020547,2]
[329044881,1718071848366,-511.48,0.00020547,2]
[329044883,1718071848376,-500.0,0.00020547,2]
[329044885,1718071848387,-1467.8,0.00020547,2]
[329044888,1718071848397,-658.76,0.0002072,2]
[329044890,1718071848409,-658.76,0.0002072,2]
[329044893,1718071848419,-658.76,0.0002072,2]
[329044896,1718071848429,-658.76,0.0002072,2]
[329044899,1718071848439,-658.9895603,0.0002072,2]
[329044902,1718071848448,-218.7,0.00020727,5]
[329044905,1718071848458,-420.0,0.00020785,2]
[329044907,1718071848468,-2000.0,0.000208,5]
[329044910,1718071848478,-2000.0,0.000208,6]
[329044912,1718071848488,-2000.0,0.000208,7]
[329044915,1718071848498,-2000.0,0.000208,8]
[329044917,1718071848507,-180.0,0.000208,2]
[329044920,1718071848518,-500.0,0.0002082,2]
[329044923,1718071848528,-500.0,0.0002082,2]
[329044926,1718071848538,-500.0,0.0002082,2]
[329044929,1718071848548,-500.0,0.0002082,2]
[329044932,1718071848559,-396.11209337,0.0002082,2]
[329044935,1718071848569,-500.0,0.00020821,2]
[329044938,1718071848579,-151.0,0.00020821,2]
[329044941,1718071848589,-500.0,0.00020821,2]
[329044944,1718071848599,-500.0,0.00020821,2]
[329044947,1718071848611,-500.0,0.00020821,2]
[329044950,1718071848621,-532.19,0.00020821,2]
[329044953,1718071848631,-166.146913,0.00020821,2]
[329044955,1718071848642,-255.779424,0.00020821,2]
[329044958,1718071848652,-255.779424,0.00020821,2]
[329044961,1718071848662,-290.033848,0.00020821,2]
[329044964,1718071848672,-151.0,0.00020821,2]
[329044967,1718071848682,-505.14,0.00020821,2]
[329044982,1718071848783,-347.406118,0.00020821,2]
[329044984,1718071848794,-345.16753094,0.00020821,2]
[329044986,1718071848804,-347.406118,0.00020821,2]
[329044988,1718071848814,-4176.12,0.00020821,2]
[329044990,1718071848824,-500.0,0.00020821,2]
[329044992,1718071848835,-571.42,0.00020821,2]
[329044994,1718071848844,-605.23,0.00020821,2]
[329044996,1718071848854,-500.0,0.00020821,2]
[329044998,1718071848864,-938.95,0.00020821,2]
[329045000,1718071848873,-2859.71,0.00020821,2]
[329045002,1718071848883,-151.0,0.00020821,2]
[329045004,1718071848896,-1812.15,0.00020821,2]
[329045006,1718071848907,-1103.57,0.00020821,2]
[329045008,1718071848917,-774.3,0.00020821,2]
[329045010,1718071848927,-1753.98,0.00020821,2]
[329045012,1718071848938,-500.0,0.00020821,2]
[329045014,1718071848947,-2422.16,0.00020821,2]
[329045016,1718071848957,-1662.75,0.00020821,2]
[329045018,1718071848968,-500.0,0.00020821,2]
[329045020,1718071848979,-2351.03,0.00020821,2]
[329045022,1718071848990,-511.48,0.00020821,2]
[329045024,1718071849001,-500.0,0.00020821,2]
[329045026,1718071849011,-1467.8,0.00020821,2]
[329045028,1718071849021,-2103.39135347,0.000209,2]
[329045030,1718071849031,-1000.0,0.00021,2]
[329045032,1718071849042,-2369.0,0.00021,5]
[329045034,1718071849052,-5000.0,0.00021,3]
[329045036,1718071849062,-5000.0,0.00021,3]
[329045038,1718071849072,-5000.0,0.00021,2]
[329045040,1718071849083,-5000.0,0.00021,2]
[329045042,1718071849093,-40846.0,0.00021,2]
[329045044,1718071849103,-151.0,0.00021,2]
[329045046,1718071849113,-255.779424,0.00021,2]
[329045048,1718071849122,-255.779424,0.00021,2]
[329045050,1718071849132,-151.0,0.00021,2]
[329045052,1718071849141,-347.406118,0.00021,2]
[329045054,1718071849156,-347.406116,0.00021,2]
[329045056,1718071849166,-151.0,0.00021,2]
[329045058,1718071849176,-500.0,0.00021095,2]
[329045060,1718071849186,-500.0,0.00021095,2]
[329045062,1718071849195,-500.0,0.00021095,2]
[329045064,1718071849205,-500.0,0.00021095,2]
[329045066,1718071849214,-532.19,0.00021095,2]
[329045068,1718071849224,-255.779424,0.00021095,2]
[329045070,1718071849233,-255.77942,0.00021095,2]
[329045072,1718071849243,-505.14,0.00021095,2]
[329045074,1718071849252,-4176.12,0.00021095,2]
[329045076,1718071849262,-500.0,0.00021095,2]
[329045078,1718071849272,-571.42,0.00021095,2]
[329045080,1718071849283,-605.23,0.00021095,2]
[329045082,1718071849293,-500.0,0.00021095,2]
[329045084,1718071849303,-938.95,0.00021095,2]
[329045086,1718071849312,-2859.71,0.00021095,2]
[329045088,1718071849322,-1812.15,0.00021095,2]
[329045090,1718071849332,-1103.57,0.00021095,2]
[329045092,1718071849342,-774.3,0.00021095,2]
[329045094,1718071849352,-1753.98,0.00021095,2]
[329045096,1718071849362,-500.0,0.00021095,2]
[329045098,1718071849371,-2422.16,0.00021095,2]
[329045100,1718071849381,-1662.75,0.00021095,2]
[329045102,1718071849391,-500.0,0.00021095,2]
[329045104,1718071849404,-2351.03,0.00021095,2]
[329045106,1718071849415,-511.48,0.00021095,2]
[329045108,1718071849425,-500.0,0.00021095,2]
[329045110,1718071849437,-1467.8,0.00021095,2]
[329045112,1718071849447,-218.7,0.00021111,5]
[329045114,1718071849457,-151.0,0.00021111,5]
[329045117,1718071849467,-500.81416267,0.000212,2]
[329045119,1718071849478,-508.0,0.000213,2]
[329045120,1718071849488,-508.0,0.000213,2]
[329045123,1718071849498,-259.65695764,0.00021365,2]
[329045125,1718071849508,-303.83351673,0.00021365,2]
[329045127,1718071849518,-158.61619788,0.00021365,2]
[329045129,1718071849530,-181.67894173,0.00021366,2]
[329045131,1718071849541,-3295.30395125,0.00021369,2]
[329045133,1718071849551,-3295.30395125,0.00021369,2]
[329045135,1718071849562,-3295.30395125,0.00021369,2]
[329045137,1718071849572,-3295.30395125,0.00021369,2]
[329045139,1718071849583,-3295.30395125,0.00021369,2]
[329045141,1718071849593,-3295.30395125,0.00021369,2]
[329045143,1718071849604,-3295.30395125,0.00021369,2]
[329045145,1718071849614,-3295.30395125,0.00021369,2]
[329045147,1718071849625,-3295.30395125,0.00021369,2]
[329045149,1718071849635,-3295.30395125,0.00021369,2]
[329045151,1718071849645,-500.0,0.00021369,2]
[329045153,1718071849658,-151.0,0.00021369,2]
[329045155,1718071849667,-500.0,0.00021369,2]
[329045157,1718071849677,-500.0,0.00021369,2]
[329045159,1718071849686,-500.0,0.00021369,2]
[329045161,1718071849696,-532.19,0.00021369,2]
[329045163,1718071849706,-505.14,0.00021369,2]
[329045165,1718071849715,-4176.12,0.00021369,2]
[329045167,1718071849725,-500.0,0.00021369,2]
[329045169,1718071849736,-571.42,0.00021369,2]
[329045171,1718071849746,-605.23,0.00021369,2]
[329045173,1718071849756,-500.0,0.00021369,2]
[329045175,1718071849766,-938.95,0.00021369,2]
[329045177,1718071849776,-2859.71,0.00021369,2]
[329045179,1718071849785,-1812.15,0.00021369,2]
[329045181,1718071849795,-1103.57,0.00021369,2]
[329045183,1718071849806,-774.3,0.00021369,2]
[329045185,1718071849816,-1753.98,0.00021369,2]
[329045187,1718071849825,-500.0,0.00021369,2]
[329045191,1718071849835,-2422.16,0.00021369,2]
[329045195,1718071849846,-1662.75,0.00021369,2]
[329045199,1718071849856,-500.0,0.00021369,2]
[329045204,1718071849867,-2351.03,0.00021369,2]
[329045208,1718071849876,-511.48,0.00021369,2]
[329045213,1718071849887,-500.0,0.00021369,2]
[329045219,1718071849901,-1467.8,0.00021369,2]
[329045225,1718071849918,-172.55347871,0.00021427,2]
[329045230,1718071849928,-153.0,0.00021479,2]
[329045234,1718071849939,-154.4576419,0.00021479,2]
[329045237,1718071849949,-153.0,0.00021479,2]
[329045239,1718071849959,-218.7,0.00021495,5]
[329045241,1718071849969,-151.0,0.00021495,5]
[329045243,1718071849980,-153.0,0.00021507,2]
[329045245,1718071849990,-410.6106982,0.00021507,2]
[329045247,1718071850000,-620.00827974,0.0002157,2]
[329045249,1718071850012,-500.0,0.00021643,2]
[329045252,1718071850025,-500.0,0.00021643,2]
[329045254,1718071850039,-500.0,0.00021643,2]
[329045256,1718071850053,-500.0,0.00021643,2]
[329045259,1718071850066,-532.19,0.00021643,2]
[329045261,1718071850078,-505.14,0.00021643,2]
[329045263,1718071850089,-4176.12,0.00021643,2]
[329045265,1718071850103,-500.0,0.00021643,2]
[329045268,1718071850115,-571.42,0.00021643,2]
[329045270,1718071850127,-605.23,0.00021643,2]
[329045272,1718071850144,-500.0,0.00021643,2]
[329045274,1718071850162,-938.95,0.00021643,2]